bitfinex-derivatives/quotes_ETHF0:USTF0_20251001
["timestamp","ask_amount","ask_price","bid_price","bid_amount"]
[1759326192051,0.41889,4294.6,4294.5,0.4372]
[1759326192252,3.20980512,4294.7,4294.5,0.8894]
[1759326192457,0.00200512,4294.7,4294.6,0.7626]
[1759326193361,0.3262,4296.0,4295.8,0.41877]
[1759326193658,0.41874,4296.2,4296.1,0.3254]
[1759326193861,0.74492,4296.4,4296.3,0.3254]
[1759326194061,0.3262,4296.4,4295.7,0.3254]
[1759326194357,0.00293524,4296.4,4295.7,0.244]
[1759326194659,0.74496,4296.0,4295.8,0.74417]
[1759326194957,0.74496,4296.0,4295.7,0.244]
[1759326195159,0.4188,4295.6,4295.4,3.2078]
[1759326195454,0.74497,4295.9,4295.6,0.3254]
[1759326195657,0.41878,4295.8,4295.7,0.3254]
[1759326195855,0.74498,4295.8,4295.7,0.3254]
[1759326196051,0.41883,4295.3,4295.1,0.62097742]
[1759326196252,0.74504,4295.2,4295.1,0.3254]
[1759326196458,0.74505,4295.0,4294.9,3.7772]
[1759326196850,0.41881,4295.4,4295.0,0.1268]
[1759326197056,0.41878,4295.8,4295.6,0.41879]
[1759326197357,3.2078,4295.9,4295.8,0.3254]
[1759326197957,0.3262,4295.6,4295.0,0.74777742]
[1759326198261,0.41882,4295.3,4295.2,0.3254]
[1759326198459,0.3262,4295.8,4295.2,0.41883]
[1759326198656,0.74502,4295.4,4295.2,0.3254]
[1759326198965,0.41879,4295.7,4295.5,0.4188]
[1759326199165,0.3262,4295.6,4295.5,0.4188]
[1759326199359,0.3262,4295.3,4295.2,0.74423]
[1759326200153,0.4188,4295.6,4295.4,0.41881]
[1759326200359,0.325,4295.5,4295.4,0.41881]
[1759326201658,3.2078,4295.9,4295.8,0.3131]
[1759326202058,0.325,4295.8,4295.7,0.41878]
[1759326202560,0.325,4295.8,4295.7,0.73188]
[1759326203463,0.3082,4295.4,4294.4,0.62097742]
[1759326203762,0.3082,4295.4,4294.6,0.3188]
[1759326203763,3.2078,4294.8,4294.6,0.3188]
[1759326203965,0.41888,4294.7,4294.5,0.7377]
[1759326204160,0.41888,4294.7,4294.5,0.4189]
[1759326204357,0.72708,4294.7,4294.5,0.4189]
[1759326204567,0.72708,4294.7,4294.6,0.3188]
[1759326204761,3.2078,4294.8,4294.7,0.41888]
[1759326204958,3.2078,4294.8,4294.4,0.3188]
[1759326205263,3.516,4294.8,4294.7,0.3188]
[1759326205460,3.516,4294.8,4294.4,0.3188]
[1759326205461,0.3082,4294.5,4294.4,0.3188]
[1759326206166,0.3082,4294.7,4294.6,0.73769]
[1759326206364,3.2078,4294.8,4294.7,0.3188]
[1759326206566,3.516,4294.8,4294.7,0.3188]
[1759326206761,3.2078,4294.8,4294.4,0.3188]
[1759326206965,0.1355,4296.0,4295.6,0.3188]
[1759326207266,3.2078,4296.3,4295.6,0.3188]
[1759326207267,3.2078,4296.3,4296.2,0.3188]
[1759326207569,3.2078,4296.3,4295.9,0.41876]
[1759326207761,0.3082,4296.2,4295.5,3.3422]
[1759326208069,0.72699,4295.7,4295.6,0.5628]
[1759326208268,3.2078,4295.8,4295.0,1.07417742]
[1759326208458,3.2078,4295.8,4295.0,0.3188]
[1759326208459,0.41884,4295.2,4295.0,0.3188]
[1759326208656,0.3082,4295.1,4295.0,0.3188]
[1759326209059,3.2078,4295.8,4295.0,0.1344]
[1759326209261,3.2078,4295.8,4295.1,0.3188]
[1759326209466,0.3082,4294.9,4294.8,3.2078]
[1759326210068,0.3082,4295.0,4294.9,0.73766]
[1759326210262,0.3082,4295.0,4294.9,0.3188]
[1759326211066,0.41886,4294.9,4294.8,3.2078]
[1759326211267,0.3082,4294.9,4294.8,3.2078]
[1759326211469,0.1355,4294.5,4294.3,0.00189255]
[1759326211669,4.17891,4294.4,4294.3,0.00189255]
[1759326213168,3.93491,4294.4,4294.3,0.00189255]
[1759326213669,3.516,4294.4,4294.3,0.00189255]
[1759326214566,0.3082,4294.4,4294.3,0.00189255]
[1759326214767,0.4189,4294.5,4294.3,0.32069255]
[1759326214970,0.244,4294.8,4294.3,0.73961255]
[1759326215268,0.41887,4294.8,4294.6,0.3188]
[1759326215466,0.72707,4294.8,4294.7,0.3188]
[1759326215766,3.2078,4294.9,4294.5,0.1344]
[1759326216073,3.2078,4294.9,4294.4,0.3188]
[1759326216074,3.62666,4294.9,4294.6,0.3188]
[1759326216371,0.3082,4294.8,4294.6,0.73769]
[1759326216572,0.41888,4294.7,4294.4,0.4189]
[1759326216771,0.3082,4294.8,4294.4,0.4189]
[1759326216968,3.2078,4295.4,4294.8,0.41887]
[1759326217171,0.5522,4295.3,4294.9,0.3188]
[1759326217470,0.41888,4294.8,4294.5,0.3188]
[1759326217672,0.3082,4294.7,4294.5,0.3188]
[1759326218068,0.41888,4294.8,4294.5,0.3188]
[1759326218273,0.3082,4294.5,4294.3,0.62286997]
[1759326218469,0.4189,4294.5,4294.3,0.73961255]
[1759326218777,0.3082,4294.4,4294.3,0.00189255]
[1759326219371,0.41888,4294.7,4294.3,0.62286997]
[1759326219569,3.62666,4294.9,4294.8,0.3188]
[1759326219969,3.93486,4294.9,4294.7,0.41888]
[1759326220174,3.62666,4294.9,4294.8,0.3188]
[1759326220575,3.93486,4294.9,4294.8,0.3188]
[1759326220972,0.3082,4294.9,4294.8,0.3188]
[1759326221179,0.3082,4295.9,4295.8,0.3188]
[1759326221474,3.6265,4296.6,4296.3,0.3188]
[1759326221679,3.2078,4296.6,4296.3,0.3188]
[1759326222878,3.2078,4296.6,4296.3,0.94037163]
[1759326223079,3.2078,4296.6,4296.3,5.5628]
[1759326223281,0.41867,4296.9,4296.3,6.18437163]
[1759326223474,0.41868,4296.8,4296.3,6.18437163]
[1759326224171,0.41868,4296.8,4296.3,5.5628]
[1759326224481,0.41868,4296.8,4296.3,0.5628]
[1759326224482,0.3082,4296.8,4296.3,0.5628]
[1759326224676,3.2078,4297.1,4296.2,0.62157163]
[1759326224677,0.31113524,4296.4,4296.2,0.41873]
[1759326224872,0.00293524,4296.4,4296.3,0.5628]
[1759326226882,3.2078,4297.1,4297.0,0.87186]
[1759326227086,0.3082,4297.6,4297.5,0.7374]
[1759326227087,3.2078,4297.6,4297.5,0.7374]
[1759326227279,3.2078,4297.6,4297.5,0.8718]
[1759326227881,3.20963439,4297.6,4297.5,0.32084886]
[1759326228190,3.20963439,4297.6,4297.5,0.00204886]
[1759326228191,3.51783439,4297.6,4297.5,0.00204886]
[1759326228385,8.51783439,4297.6,4297.5,0.00204886]
[1759326230682,8.51783439,4297.6,4296.3,0.41872]
[1759326230683,0.41871,4296.5,4296.3,0.41872]
[1759326230892,0.72691,4296.5,4296.4,0.3188]
[1759326231289,0.3082,4296.3,4296.2,3.5266]
[1759326231489,0.3082,4296.3,4296.2,3.52911711]
[1759326231783,0.3082,4296.3,4296.2,3.21031711]
[1759326232184,0.3082,4296.3,4296.2,3.52911711]
[1759326232383,0.3082,4296.3,4296.2,3.21031711]
[1759326232986,0.3082,4296.3,4296.2,0.00251711]
[1759326233683,0.5522,4296.3,4296.2,0.00251711]
[1759326233882,0.244,4296.4,4296.2,0.00251711]
[1759326234088,0.98322,4296.4,4296.3,0.3366]
[1759326234279,0.3205,4296.3,4296.2,0.00251711]
[1759326234683,5.5645,4296.3,4296.2,0.00251711]
[1759326236288,0.73935,4295.1,4294.9,0.3366]
[1759326236589,0.41885,4295.1,4295.0,0.3366]
[1759326236786,0.41882,4295.4,4294.7,0.119]
[1759326236983,0.3205,4295.5,4294.8,0.3366]
[1759326237197,3.2078,4295.6,4295.5,0.4696]
[1759326238688,3.2078,4296.1,4296.0,0.4696]
[1759326238887,3.5283,4296.1,4296.0,0.3366]
[1759326239088,3.5283,4296.1,4295.5,0.4696]
[1759326239393,0.41879,4295.7,4295.6,0.3366]
[1759326239586,0.3205,4295.2,4295.1,3.2078]
[1759326239888,0.73936,4294.9,4294.8,0.00279461]
[1759326240090,4.19116,4294.9,4294.8,0.00279461]
[1759326240883,3.94716,4294.9,4294.8,0.00279461]
[1759326241085,4.19116,4294.9,4294.8,0.00279461]
[1759326241684,3.94716,4294.9,4294.8,0.00279461]
[1759326241883,3.5283,4294.9,4294.8,0.33939461]
[1759326242088,3.2078,4294.9,4294.8,0.33939461]
[1759326242292,3.5283,4294.9,4294.8,0.00279461]
[1759326242990,0.73931,4295.5,4295.1,0.41884]
[1759326243192,0.3205,4295.5,4295.0,0.133]
[1759326243493,3.2078,4295.9,4295.2,0.41883]
[1759326243494,3.5283,4295.9,4295.2,0.41883]
[1759326243797,3.2078,4295.9,4295.3,0.41882]
[1759326243998,0.3205,4295.7,4295.1,1.04711]
[1759326244199,3.2078,4295.9,4295.8,0.75537]
[1759326244386,3.2078,4295.9,4295.8,0.3366]
[1759326244592,3.94707,4295.9,4295.3,0.3366]
[1759326244792,3.94707,4295.9,4295.4,0.3366]
[1759326244793,0.3205,4295.6,4295.4,0.3366]
[1759326245091,0.41878,4295.8,4295.6,0.3366]
[1759326245292,0.41878,4295.8,4295.7,0.3366]
[1759326245597,0.73928,4295.8,4295.7,0.3366]
[1759326245798,0.41879,4295.6,4295.5,0.5228]
[1759326245999,0.73929,4295.6,4295.5,0.1862]
[1759326246394,0.73929,4295.6,4295.5,0.5228]
[1759326246894,0.73929,4295.6,4295.5,0.1862]
[1759326249301,0.3205,4295.5,4295.3,0.41882]
[1759326249499,0.3205,4295.4,4295.3,0.41882]
[1759326249797,0.3205,4295.7,4295.4,0.3366]
[1759326249993,0.73933,4295.3,4295.1,0.41884]
[1759326250200,0.41883,4295.3,4295.2,0.3366]
[1759326250699,3.2078,4295.9,4295.7,0.41878]
[1759326250998,3.2078,4296.4,4295.8,0.3366]
[1759326251190,3.2078,4296.4,4296.1,0.41874]
[1759326251391,3.2078,4296.4,4296.3,0.3366]
[1759326252590,3.62652,4296.4,4296.3,0.3366]
[1759326253104,3.2078,4296.4,4296.3,0.3366]
[1759326254201,0.3205,4296.2,4296.1,0.80777163]
[1759326254501,0.3205,4296.2,4296.1,1.14437163]
[1759326254795,0.3205,4296.2,4296.1,0.80777163]
[1759326254990,0.3205,4296.2,4296.1,0.1862]
[1759326256297,3.2078,4296.4,4296.2,0.3366]
[1759326256597,3.62652,4296.4,4296.3,0.3366]
[1759326256798,0.41873,4296.2,4296.1,0.60494]
[1759326257000,0.41873,4296.2,4296.1,0.94154]
[1759326257300,0.41873,4296.2,4296.1,0.75534]
[1759326257699,3.5283,4296.9,4296.3,0.3366]
[1759326257903,0.41871,4296.5,4296.4,0.3366]
[1759326258098,0.73921,4296.5,4296.4,0.3366]
[1759326259002,0.3205,4296.5,4296.4,0.3366]
[1759326259203,0.73921,4296.5,4296.4,0.75532]
[1759326259403,0.73921,4296.5,4296.4,0.3366]
[1759326259604,0.73803,4296.3,4296.1,1.35441163]
[1759326259802,0.3193,4296.2,4296.1,1.35441163]
[1759326260102,0.3193,4296.2,4296.1,0.73284]
[1759326260493,0.73802,4296.4,4296.3,0.41873]
[1759326261207,0.244,4296.4,4296.1,0.80799265]
[1759326261501,0.73803,4296.2,4296.1,0.1862]
[1759326264502,0.41877,4295.8,4295.7,0.244]
[1759326264707,0.3231,4295.8,4295.7,0.244]
[1759326265010,0.74187,4295.8,4295.7,0.244]
[1759326265602,0.3231,4295.8,4295.7,0.66278]
[1759326265800,0.74187,4295.8,4295.7,0.244]
[1759326266509,1.16857,4295.8,4295.7,0.244]
[1759326266802,0.41879,4295.6,4295.4,4.14369265]
[1759326267006,0.3231,4295.7,4295.4,4.14369265]
[1759326267007,1.1686,4295.5,4295.4,3.7268]
[1759326267202,1.1686,4295.5,4295.4,3.4127]
[1759326267504,1.1686,4295.5,4295.2,0.244]
[1759326267505,1.16862,4295.3,4295.2,0.86579265]
[1759326267698,1.16862,4295.3,4295.2,0.244]
[1759326267903,0.41884,4295.1,4295.0,0.62179265]
[1759326268100,0.1344,4295.0,4294.8,0.00279461]
[1759326268302,0.3231,4295.3,4294.9,0.339]
[1759326268503,0.41885,4295.0,4294.9,0.339]
[1759326268698,0.74195,4295.0,4294.9,0.339]
[1759326269007,0.3231,4295.0,4294.9,0.339]
[1759326269206,0.41883,4295.2,4295.0,0.55095]
[1759326269414,0.41882,4295.3,4295.1,0.339]
[1759326269598,0.3231,4295.3,4295.2,0.339]
[1759326269798,0.3231,4295.3,4295.0,0.55095]
[1759326270108,0.74195,4295.0,4294.9,0.96079265]
[1759326270303,0.41884,4295.1,4295.0,0.339]
[1759326270503,0.74196,4294.9,4294.8,0.81078726]
[1759326270807,0.74196,4294.9,4294.8,0.00279461]
[1759326271009,0.3231,4295.3,4294.8,0.00279461]
[1759326271200,0.74193,4295.2,4294.9,0.244]
[1759326271405,1.16864,4295.1,4295.0,0.5439]
[1759326271702,1.16866,4294.9,4294.8,0.00279461]
[1759326272510,0.7498,4294.9,4294.8,0.54669461]
[1759326272911,0.7498,4294.9,4294.8,0.96556461]
[1759326273113,0.7498,4294.9,4294.8,1.18186461]
[1759326273817,1.16866,4294.9,4294.8,0.76299461]
[1759326274617,0.7498,4294.9,4294.8,0.62656461]
[1759326274812,0.62972,4295.3,4295.2,0.7602]
[1759326275013,0.62972,4295.3,4295.0,0.55095]
[1759326275014,3.62661,4295.4,4295.3,0.75782]
[1759326275210,3.62661,4295.4,4295.3,1.17902]
[1759326275410,0.41881,4295.4,4295.3,1.17902]
[1759326275811,0.41881,4295.4,4295.3,0.7602]
[1759326276016,0.41881,4295.4,4295.3,1.17902]
[1759326276218,0.41882,4295.3,4295.2,0.62179265]
[1759326276419,0.84553,4295.2,4295.1,1.40969265]
[1759326276916,0.62973,4295.2,4295.1,2.04483265]
[1759326277223,0.41883,4295.2,4295.1,1.62599265]
[1759326278224,0.41883,4295.2,4295.1,2.04483265]
[1759326278522,0.41883,4295.2,4295.1,1.62599265]
[1759326278918,1.16863,4295.2,4295.1,1.62599265]
[1759326279319,0.55325,4295.0,4294.9,3.82959265]
[1759326279522,1.30305,4295.0,4294.9,3.2078]
[1759326279911,1.16865,4295.0,4294.9,3.968]
[1759326280116,0.84555,4295.0,4294.9,3.968]
[1759326280412,1.16865,4295.0,4294.9,3.968]
[1759326281215,1.16865,4295.0,4294.9,0.7602]
[1759326282720,0.534,4295.4,4295.3,0.4212]
[1759326282926,0.2109,4295.4,4295.3,0.7602]
[1759326283326,0.62971,4295.4,4295.3,0.7602]
[1759326284224,1.16861,4295.4,4295.3,0.7602]
[1759326284424,0.41883,4295.2,4295.1,0.86579265]
[1759326284624,0.7498,4295.2,4295.1,1.62599265]
[1759326284932,0.84553,4295.2,4295.1,1.0042]
[1759326285430,0.62973,4295.2,4295.1,1.0042]
[1759326285725,0.3231,4295.5,4295.4,0.7602]
[1759326285726,0.6297,4295.5,4295.4,0.7602]
[1759326285933,0.8455,4295.5,4295.4,0.7602]
[1759326286228,1.1686,4295.5,4295.4,0.7602]
[1759326287129,0.6297,4295.5,4295.4,0.7602]
[1759326287332,0.6297,4295.5,4295.4,1.17901]
[1759326287526,0.6297,4295.5,4295.4,0.7602]
[1759326288234,0.4188,4295.5,4295.4,0.7602]
[1759326288732,0.6297,4295.5,4295.4,0.7602]
[1759326289128,0.6297,4295.5,4295.3,0.62360823]
[1759326289129,0.84551,4295.4,4295.3,0.62360823]
[1759326289433,1.16861,4295.4,4295.3,1.38380823]
[1759326289630,3.4187,4295.8,4295.7,0.4212]
[1759326289836,3.4187,4295.8,4295.7,0.7602]
[1759326290033,3.83747,4295.8,4295.7,0.7602]
[1759326290228,4.37637,4295.8,4295.7,0.7602]
[1759326290429,4.37637,4295.8,4295.7,0.2049]
[1759326291032,4.37637,4295.8,4295.7,0.5439]
[1759326291536,1.1686,4295.5,4295.4,0.82850823]
[1759326291738,1.303,4295.5,4295.4,0.62360823]
[1759326294138,1.303,4295.5,4295.4,0.2049]
[1759326294440,1.1686,4295.5,4295.4,0.5183]
[1759326294828,0.41882,4295.3,4295.2,1.07196989]
[1759326295032,0.83982,4295.3,4295.2,1.28896989]
[1759326295235,1.15742,4295.3,4295.2,1.81656989]
[1759326295430,1.15742,4295.3,4295.2,0.9886]
[1759326296338,0.41882,4295.3,4295.2,0.9886]
[1759326296738,0.3176,4295.7,4295.2,0.6752]
[1759326296931,0.41877,4295.8,4295.7,0.7446]
[1759326297134,0.62227,4295.8,4295.7,0.7446]
[1759326297330,1.15738,4295.7,4295.6,0.83330188]
[1759326297535,1.15738,4295.7,4295.6,1.57790188]
[1759326297931,0.83978,4295.7,4295.6,1.57790188]
[1759326298341,1.15738,4295.7,4295.6,1.57790188]
[1759326300338,0.421,4295.7,4295.5,0.62488557]
[1759326300539,0.7386,4295.5,4295.4,0.7166]
[1759326300740,0.4188,4295.5,4295.4,0.9308]
[1759326300934,1.1574,4295.5,4295.4,1.76410188]
[1759326301136,0.6223,4295.5,4295.4,1.76410188]
[1759326301837,1.1574,4295.5,4295.4,0.1862]
[1759326302043,1.1574,4295.5,4295.4,0.4032]
[1759326302343,0.8398,4295.5,4295.4,0.7446]
[1759326302637,1.1574,4295.5,4295.4,1.57790188]
[1759326302841,1.1574,4295.5,4295.3,1.36370188]
[1759326302842,1.15741,4295.4,4295.3,1.36370188]
[1759326303040,1.15741,4295.4,4295.3,0.83330188]
[1759326303239,1.15742,4295.3,4295.2,1.57790188]
[1759326303535,3.4113,4295.8,4295.7,0.7446]
[1759326303744,3.7289,4296.4,4296.3,0.4312]
[1759326303943,4.36512,4296.4,4296.3,1.05594449]
[1759326304243,0.41865,4297.1,4296.9,0.3134]
[1759326304444,0.7386,4297.1,4297.0,0.8743]
[1759326304742,0.83968,4296.8,4296.7,0.62392308]
[1759326305044,0.7386,4296.7,4296.6,0.7446]
[1759326305546,0.7386,4296.7,4296.6,1.36825531]
[1759326305949,0.7386,4296.7,4296.6,0.84065531]
[1759326306142,0.7386,4296.7,4296.6,0.62365531]
[1759326306446,1.1573,4296.6,4296.5,0.62365531]
[1759326306746,1.1573,4296.6,4296.5,1.15405531]
[1759326307241,4.3651,4296.6,4296.5,0.62365531]
[1759326307444,0.8637,4296.5,4296.4,0.1862]
[1759326307943,0.7386,4296.5,4296.4,0.9308]
[1759326308544,0.7386,4296.5,4296.4,0.7446]
[1759326310045,4.0475,4296.6,4296.5,0.7446]
[1759326310242,1.1573,4296.6,4296.5,0.217]
[1759326310444,0.62222,4296.4,4296.3,0.243]
[1759326310650,0.7386,4296.1,4296.0,0.62365531]
[1759326310845,1.15735,4296.0,4295.8,0.93705531]
[1759326311038,0.41875,4296.0,4295.8,1.55445531]
[1759326311241,0.41874,4296.2,4296.1,0.4312]
[1759326311438,0.41874,4296.2,4296.0,0.1297]
[1759326311439,0.41873,4296.3,4296.2,0.7446]
[1759326311643,0.62223,4296.3,4296.2,0.7446]
[1759326311945,0.41874,4296.1,4296.0,1.08365531]
[1759326312154,1.15734,4296.1,4296.0,1.39705531]
[1759326312442,1.15734,4296.1,4296.0,0.5304]
[1759326312646,0.83976,4295.9,4295.8,1.02685531]
[1759326312847,1.15736,4295.9,4295.8,1.34025531]
[1759326313247,1.15736,4295.9,4295.8,0.80985531]
[1759326313452,1.15736,4295.9,4295.8,0.1862]
[1759326313745,0.421,4295.4,4295.1,0.62365531]
[1759326313951,0.83981,4295.4,4295.3,0.217]
[1759326314147,0.83981,4295.4,4295.3,0.5304]
[1759326314344,0.2035,4295.4,4295.3,0.7446]
[1759326314548,0.41881,4295.5,4295.4,0.5304]
[1759326314851,1.15741,4295.5,4295.4,0.7446]
[1759326315252,0.41882,4295.3,4295.1,0.62365531]
[1759326315446,0.41884,4295.1,4295.0,3.83145531]
[1759326315642,1.15744,4295.1,4295.0,3.83145531]
[1759326315949,1.15744,4295.1,4295.0,3.2078]
[1759326316143,1.15744,4295.1,4295.0,3.4248]
[1759326316546,1.15744,4295.1,4294.8,0.62644992]
[1759326316547,0.83986,4294.9,4294.8,0.00279461]
[1759326316848,1.15746,4294.9,4294.8,0.62019461]
[1759326317159,1.15746,4294.9,4294.8,0.93359461]
[1759326317546,1.15746,4294.9,4294.8,0.18899461]
[1759326317955,1.15746,4294.9,4294.8,0.40599461]
[1759326318153,1.15746,4294.9,4294.8,0.71939461]
[1759326319054,0.62236,4294.9,4294.8,0.93359461]
[1759326319256,0.93996,4294.9,4294.8,0.93359461]
[1759326319456,1.15746,4294.9,4294.8,0.93359461]
[1759326319754,1.15746,4294.9,4294.8,0.40599461]
[1759326319951,1.15746,4294.9,4294.8,0.18899461]
[1759326320450,1.15746,4294.9,4294.8,0.00279461]
[1759326320655,1.15746,4294.9,4294.8,0.22409461]
[1759326320956,4.60826,4294.9,4294.8,0.00279461]
[1759326321347,4.60826,4294.9,4293.9,0.7746]
[1759326321348,0.2207,4294.0,4293.9,0.7746]
[1759326321551,1.04719,4294.8,4294.5,0.2213]
[1759326321552,0.8511,4294.6,4294.5,0.2213]
[1759326321855,0.8511,4294.6,4294.0,0.5705]
[1759326321856,0.63964,4294.1,4294.0,0.5705]
[1759326322155,0.41897,4293.8,4293.7,0.62365531]
[1759326322353,1.17161,4292.4,4292.2,0.83189744]
[1759326322546,0.41912,4292.3,4291.9,0.7746]
[1759326322752,0.2207,4292.4,4292.3,0.7746]
[1759326323050,0.3203,4293.2,4293.1,0.2213]
[1759326323254,0.41902,4293.3,4293.2,0.3057]
[1759326323549,3.5444,4293.5,4293.2,0.4371]
[1759326323758,0.5403,4293.3,4293.2,0.4371]
[1759326323952,3.2078,4293.5,4293.2,0.4371]
[1759326324157,0.41901,4293.4,4293.3,0.3057]
[1759326324352,3.4115,4293.5,4293.4,0.5234]
[1759326324553,3.7481,4293.5,4293.4,0.5234]
[1759326324752,4.1671,4293.5,4293.4,0.5234]
[1759326325058,4.3796,4293.5,4293.4,0.5234]
[1759326326653,0.4162,4293.2,4293.1,0.1863]
[1759326326958,0.83527,4292.8,4292.7,0.4607]
[1759326327153,0.83527,4292.8,4292.7,0.9858]
[1759326328161,1.17187,4292.8,4292.7,0.4607]
[1759326328351,1.17187,4292.8,4292.7,0.2177]
[1759326329155,1.17187,4292.8,4292.7,0.7428]
[1759326329360,0.83527,4292.8,4292.7,0.7428]
[1759326329658,1.17187,4292.8,4292.7,0.2177]
[1759326330161,0.41909,4292.6,4292.5,0.1863]
[1759326330357,1.17189,4292.6,4292.5,0.1863]
[1759326331457,1.41489,4292.6,4292.5,0.1863]
[1759326331961,0.41912,4292.2,4292.1,0.3057]
[1759326332152,3.3349,4293.0,4292.1,0.6801]
[1759326332358,0.2037,4292.8,4292.7,0.7428]
[1759326332862,0.41906,4292.9,4292.7,0.3057]
[1759326333355,0.3366,4293.4,4292.8,3.2078]
[1759326333560,0.41899,4293.6,4293.0,0.1347]
[1759326333761,0.419,4293.5,4293.3,0.41901]
[1759326333963,0.419,4293.5,4293.4,0.3057]
[1759326335356,0.75562,4293.3,4293.2,0.1863]
[1759326335954,0.99862,4293.3,4293.2,0.1863]
[1759326337668,0.41902,4293.3,4293.2,0.492]
[1759326338465,0.41902,4293.3,4293.2,0.3057]
[1759326338962,3.2078,4293.5,4293.1,0.3057]
[1759326339276,0.41902,4293.3,4293.2,0.3057]
[1759326339865,0.41902,4293.3,4292.9,0.3057]
[1759326339866,0.41905,4293.0,4292.9,0.3057]
[1759326340163,0.41905,4293.0,4292.8,3.2078]
[1759326340164,0.75565,4293.0,4292.8,3.2078]
[1759326340356,0.75565,4293.0,4292.9,0.3057]
[1759326340761,0.3366,4292.9,4292.8,3.2078]
[1759326340963,0.75567,4292.8,4292.7,0.243]
[1759326341762,0.75567,4292.8,4292.7,0.3057]
[1759326342165,0.41911,4292.4,4292.3,3.5135]
[1759326342359,0.41911,4292.4,4292.3,3.93262]
[1759326343064,0.41911,4292.4,4292.3,3.5135]
[1759326343265,0.75571,4292.4,4292.3,3.2078]
[1759326343658,0.3366,4293.0,4292.5,0.1347]
[1759326343863,0.41907,4292.8,4292.7,0.3057]
[1759326344366,0.75567,4292.8,4292.6,0.243]
[1759326344570,0.3366,4292.7,4292.6,0.243]
[1759326344862,0.75571,4292.4,4292.3,3.5135]
[1759326345462,0.41911,4292.4,4292.3,3.5135]
[1759326346570,0.3366,4293.1,4292.4,0.4191]
[1759326346767,0.41909,4292.6,4292.5,0.4404]
[1759326347563,3.6715,4293.5,4292.7,0.3057]
[1759326347766,1.04745,4293.7,4293.1,0.3057]
[1759326348069,0.41902,4293.3,4293.2,0.243]
[1759326348370,0.00253574,4293.8,4293.7,0.3057]
[1759326348565,0.00253574,4293.8,4293.7,3.7565]
[1759326348867,0.00253574,4293.8,4293.7,4.58839744]
[1759326349067,0.00253574,4293.8,4293.7,5.00434617]
[1759326349971,0.00253574,4293.8,4293.7,10.00434617]
[1759326350166,0.00253574,4293.8,4293.7,8.7565]
[1759326350466,0.75810574,4293.8,4293.7,3.5135]
[1759326350667,0.75810574,4293.8,4293.7,3.2078]
[1759326350865,0.42150574,4293.8,4293.7,3.5135]
[1759326352373,0.00253574,4293.8,4293.7,3.5135]
[1759326352566,3.2078,4294.7,4294.4,0.41891]
[1759326352771,3.2078,4294.7,4294.5,0.79659]
[1759326352974,3.2078,4294.7,4294.6,0.5487]
[1759326353171,0.41887,4294.9,4294.8,0.3057]
[1759326353670,0.42067406,4294.9,4294.8,0.3057]
[1759326354076,0.75467406,4294.9,4294.8,0.3057]
[1759326354468,0.75288,4294.7,4294.6,0.3084]
[1759326354670,0.75291,4294.4,4294.3,0.3084]
[1759326354870,0.41891,4294.4,4294.3,0.5514]
[1759326355374,0.00180406,4294.9,4294.4,0.3084]
[1759326355574,0.41889,4294.7,4294.6,0.3084]
[1759326355767,0.41889,4294.7,4294.6,0.5514]
[1759326359578,0.00180406,4294.9,4294.8,0.72727]
[1759326359975,0.42066406,4294.9,4294.8,0.3084]
[1759326360175,0.75466406,4294.9,4294.8,0.3084]
[1759326360773,0.4189,4294.5,4294.4,0.1862]
[1759326360974,0.7529,4294.5,4294.4,0.7376]
[1759326361181,0.4189,4294.6,4294.5,0.7273]
[1759326361377,0.00180406,4294.9,4294.5,0.1228]
[1759326361575,0.334,4296.1,4295.2,1.04709]
[1759326361781,0.41874,4296.2,4296.0,0.41875]
[1759326361979,0.75271,4296.5,4296.3,0.41872]
[1759326362181,0.334,4296.8,4296.4,0.243]
[1759326362378,0.41869,4296.7,4296.5,0.3084]
[1759326362585,0.4187,4296.6,4296.5,0.31125691]
[1759326362883,0.7527,4296.6,4296.5,0.00285691]
[1759326363084,0.7527,4296.6,4296.5,0.31125691]
[1759326363485,0.7527,4296.6,4296.5,0.00285691]
[1759326363882,5.7527,4296.6,4296.5,0.00285691]
[1759326364486,0.7527,4296.6,4296.5,0.00285691]
[1759326364884,5.7527,4296.6,4296.5,0.00285691]
[1759326365887,0.7527,4296.6,4296.5,0.00285691]
[1759326366080,0.7527,4296.6,4296.5,0.31125691]
[1759326366081,0.4187,4296.6,4296.5,0.31125691]
[1759326366283,0.00166791,4296.7,4296.6,0.3084]
[1759326366488,0.00166791,4296.7,4296.6,0.5514]
[1759326366889,0.00166791,4296.7,4296.6,46.3514]
[1759326367577,3.2078,4297.9,4297.0,0.1228]
[1759326367779,0.41859,4297.7,4297.5,0.3084]
[1759326367981,0.41861,4297.5,4297.3,0.5514]
[1759326368286,0.334,4297.4,4297.3,0.3084]
[1759326368489,0.33599248,4297.4,4297.3,0.5514]
[1759326368890,0.334,4297.2,4297.1,3.4508]
[1759326369092,0.334,4297.3,4296.8,0.3084]
[1759326369284,0.41865,4297.1,4296.9,0.243]
[1759326369590,0.41864,4297.2,4297.1,0.3084]
[1759326369792,0.41864,4297.2,4297.1,3.5162]
[1759326370092,0.00199248,4297.4,4297.2,0.41864]
[1759326370284,0.00199248,4297.4,4297.3,0.5514]
[1759326371390,3.2078,4298.9,4298.3,0.41852]
[1759326371689,0.41851,4298.6,4298.5,0.3084]
[1759326372288,0.4205618,4298.6,4298.5,0.3084]
[1759326372584,0.4205618,4298.6,4298.4,0.243]
[1759326372788,0.0020518,4298.6,4298.5,41.2312]
[1759326372992,0.0020518,4298.6,4298.5,41.64971]